bitfinex/quotes_ETHUSD_20250424
["timestamp","ask_amount","ask_price","bid_price","bid_amount"]
[1745484316329,3.80168057,1732.6,1731.5,6.546]
[1745484316496,3.80168057,1732.4,1731.7,0.7586]
[1745484316821,3.55,1732.5,1731.7,0.7586]
[1745484317602,3.0,1732.5,1731.7,0.7586]
[1745484318003,0.55,1732.6,1731.7,0.7586]
[1745484318412,1.4309,1732.8,1731.9,5.77381804]
[1745484318610,1.4309,1732.8,1732.1,0.8131]
[1745484318611,0.6745,1732.8,1732.1,0.8131]
[1745484318842,0.6745,1732.8,1732.1,5.77324527]
[1745484319042,0.6745,1732.8,1732.3,0.8131]
[1745484321759,0.6745,1732.8,1732.5,0.804]
[1745484322858,6.05,1733.6,1732.6,5.77140427]
[1745484323006,6.05,1733.7,1732.7,0.8183]
[1745484323407,3.0,1733.6,1732.7,6.545]
[1745484323639,3.0,1733.6,1732.9,0.8068]
[1745484324850,3.0,1733.6,1733.0,0.8068]
[1745484325054,9.45016948,1733.8,1733.0,0.8068]
[1745484325259,9.45016948,1733.8,1733.1,5.76989908]
[1745484325560,10.77417086,1734.2,1733.2,0.8191]
[1745484325742,3.0,1734.1,1733.3,0.8191]
[1745484326044,0.762,1734.6,1733.5,0.7536]
[1745484326259,4.56368057,1734.6,1733.5,0.7536]
[1745484326462,11.10868057,1734.6,1733.5,0.7536]
[1745484326614,3.0,1734.5,1733.5,0.7536]
[1745484326819,3.80168057,1734.0,1733.5,0.7536]
[1745484327258,6.80168057,1734.0,1733.5,0.7536]
[1745484327450,0.55,1733.9,1733.5,0.7536]
[1745484327716,3.0,1733.7,1733.1,0.8243]
[1745484329028,3.80168057,1733.6,1733.1,0.8243]
[1745484329227,3.0,1733.7,1733.1,0.8243]
[1745484329527,4.63098057,1733.8,1733.1,0.8243]
[1745484329528,3.8293,1733.8,1733.1,0.8243]
[1745484330065,0.55,1733.7,1733.1,0.8243]
[1745484330273,0.55,1733.7,1732.3,0.7529]
[1745484330274,3.55,1733.5,1732.3,0.7529]
[1745484330483,3.55,1733.5,1732.5,0.7529]
[1745484330774,3.0,1733.2,1732.5,0.7529]
[1745484330931,3.99101351,1733.5,1732.5,0.7529]
[1745484331279,3.55,1733.5,1732.5,0.7529]
[1745484331767,3.0,1733.2,1732.5,0.7529]
[1745484332064,3.0,1732.9,1732.5,0.7529]
[1745484333276,3.0,1733.0,1732.5,0.7529]
[1745484335343,10.39078993,1735.1,1732.9,0.7894]
[1745484335604,10.39078993,1735.1,1731.5,5.77521439]
[1745484335605,10.39078993,1735.1,1734.3,0.7894]
[1745484336065,0.7682,1735.0,1734.3,0.7894]
[1745484336270,0.7682,1735.0,1733.4,3.0]
[1745484336449,0.7861,1734.7,1733.1,4.9276]
[1745484336783,0.7861,1734.4,1732.8,3.0]
[1745484336979,0.55,1734.2,1733.0,3.0]
[1745484337183,0.55,1734.2,1732.8,5.77080629]
[1745484337385,3.55,1734.2,1732.9,9.34774334]
[1745484337673,6.544,1734.1,1733.0,5.77033712]
[1745484337832,3.0,1734.0,1733.0,5.77033712]
[1745484338036,6.544,1733.9,1733.0,5.77033712]
[1745484338237,6.544,1733.9,1732.9,0.57708063]
[1745484339237,6.544,1733.9,1733.2,0.7716]
[1745484339862,3.55,1734.2,1733.2,6.54121657]
[1745484340176,6.543,1733.8,1733.2,0.7716]
[1745484340550,3.55,1734.2,1733.2,0.7716]
[1745484340748,6.8361,1734.4,1733.4,5.76883714]
[1745484340963,6.8361,1734.4,1733.5,0.7574]
[1745484340964,6.543,1734.3,1733.5,0.7574]
[1745484341468,6.543,1734.2,1733.5,0.7574]
[1745484341684,6.8361,1734.4,1733.5,0.7574]
[1745484341847,19.4554744,1734.9,1734.0,0.7574]
[1745484342055,6.542,1734.8,1734.0,0.7574]
[1745484342774,19.4554744,1734.9,1734.1,0.7644]
[1745484342953,6.542,1734.7,1734.1,0.7644]
[1745484343995,3.55,1734.6,1734.1,0.7644]
[1745484344691,3.55,1734.7,1734.1,0.7644]
[1745484344889,6.541,1734.6,1734.1,0.7644]
[1745484345106,19.4554744,1734.9,1734.1,0.7644]
[1745484345303,6.541,1734.8,1734.1,6.53092643]
[1745484346368,6.541,1734.8,1734.1,0.7644]
[1745484346597,0.4094744,1734.9,1734.1,0.7644]
[1745484346598,0.4094744,1734.9,1734.1,6.530832]
[1745484346756,6.589,1734.8,1734.2,0.8087]
[1745484347497,0.4094744,1734.9,1734.2,0.8087]
[1745484347994,6.588,1734.8,1734.2,0.8087]
[1745484348762,0.4094744,1734.9,1734.2,0.8087]
[1745484348963,6.588,1734.8,1734.2,0.8087]
[1745484349165,0.4094744,1734.9,1734.3,5.76598702]
[1745484349382,0.4094744,1734.9,1734.4,0.821]
[1745484351916,6.587,1734.8,1734.4,0.821]
[1745484352293,0.4094744,1734.9,1734.4,0.821]
[1745484352623,6.587,1734.8,1734.4,0.821]
[1745484353033,0.4094744,1734.9,1734.4,0.821]
[1745484353323,6.587,1734.8,1734.4,0.821]
[1745484354590,6.587,1734.7,1734.4,0.821]
[1745484355412,0.4094744,1734.9,1734.4,0.821]
[1745484355689,6.587,1734.8,1734.4,0.821]
[1745484355892,0.4094744,1734.9,1734.4,0.821]
[1745484356089,6.587,1734.7,1734.4,0.821]
[1745484356294,0.4094744,1734.9,1734.4,0.821]
[1745484356555,0.4094744,1734.9,1734.4,0.8005]
[1745484356846,0.4094744,1734.9,1734.8,3.7867]
[1745484357045,0.4094744,1734.9,1734.8,4.7418165]
[1745484357343,0.4094744,1734.9,1734.8,10.50616973]
[1745484357545,0.26357464,1734.9,1734.8,10.50616973]
[1745484357839,6.586,1735.9,1735.3,0.1235]
[1745484358046,6.586,1735.9,1735.4,0.1235]
[1745484358338,6.586,1735.9,1735.4,1.01210788]
[1745484358640,6.586,1735.9,1735.4,0.1235]
[1745484360398,3.0,1735.8,1735.4,0.1235]
[1745484362295,3.0,1735.8,1734.8,0.6933]
[1745484362499,0.55,1735.7,1734.8,0.6933]
[1745484362832,0.55,1735.4,1734.8,0.6933]
[1745484363031,1.337,1735.2,1734.2,0.6933]
[1745484363325,4.337,1735.2,1734.2,0.6933]
[1745484363933,3.69919937,1734.4,1733.9,0.6933]
[1745484364234,10.28319937,1734.4,1733.9,0.6933]
[1745484364533,3.0,1734.3,1733.9,0.6933]
[1745484364703,3.0,1734.3,1733.2,0.6933]
[1745484364909,0.55,1734.2,1733.2,0.6933]
[1745484365607,3.7681,1734.3,1733.2,0.6933]
[1745484365948,3.7681,1734.3,1732.6,0.6933]
[1745484365949,3.55,1733.8,1732.6,0.6933]
[1745484366245,6.585,1733.7,1732.6,6.74310522]
[1745484366443,6.585,1733.7,1732.7,0.67431052]
[1745484366807,6.585,1733.7,1732.6,0.6933]
[1745484367323,6.585,1733.7,1732.6,3.6933]
[1745484367921,3.69919937,1733.9,1732.9,3.6933]
[1745484368104,6.585,1733.8,1732.9,0.6933]
[1745484368506,3.55,1733.7,1732.9,0.6933]
[1745484368738,0.7869,1733.6,1732.9,0.6933]
[1745484369111,4.48609937,1733.6,1732.9,0.6933]
[1745484369305,3.0,1733.5,1732.9,0.6933]
[1745484369512,0.55,1733.4,1732.6,0.6933]
[1745484369924,10.28619937,1733.3,1732.6,0.6933]
[1745484370247,6.587,1733.3,1732.6,0.6933]
[1745484370445,5.03609937,1733.6,1732.6,0.6933]
[1745484370446,4.48609937,1733.6,1732.6,0.6933]
[1745484370649,6.587,1733.5,1732.6,0.6933]
[1745484370814,6.05,1734.3,1732.6,3.0]
[1745484370815,3.8188,1733.9,1732.6,3.0]
[1745484371010,3.8188,1733.9,1733.2,0.6933]
[1745484371011,0.8188,1733.9,1733.2,0.6933]
[1745484371411,3.8188,1733.9,1733.2,0.6933]
[1745484371611,3.69919937,1733.7,1732.7,3.0]
[1745484371833,3.55,1733.6,1732.6,0.6933]
[1745484372142,3.55,1733.6,1732.6,3.6933]
[1745484372317,0.808,1733.5,1732.6,1.72143]
[1745484372654,0.808,1733.5,1732.7,3.0]
[1745484372828,0.808,1733.5,1732.6,0.6933]
[1745484373531,0.808,1733.5,1732.6,3.6933]
[1745484373771,0.55,1733.6,1732.6,3.6933]
[1745484374131,10.3474,1733.8,1732.6,3.6933]
[1745484374132,7.3474,1733.8,1732.8,3.0]
[1745484374329,6.588,1733.7,1733.0,0.6933]
[1745484374532,6.588,1733.7,1733.1,5.76990487]
[1745484374726,7.4175,1734.1,1733.2,3.0]
[1745484374928,7.4175,1734.1,1733.3,0.3]
[1745484375360,7.4175,1734.1,1733.0,3.6933]
[1745484375551,3.55,1734.0,1733.0,3.6933]
[1745484375744,3.55,1734.0,1733.0,0.6933]
[1745484376253,3.55,1734.0,1733.0,6.46350845]
[1745484376456,7.4175,1734.1,1733.2,5.76965032]
[1745484376663,7.4175,1734.1,1733.4,0.6933]
[1745484376846,6.673,1734.2,1733.4,6.46206422]
[1745484377038,6.673,1734.2,1733.4,0.6933]
[1745484377371,6.673,1734.2,1733.4,3.6933]
[1745484377693,6.673,1734.2,1733.5,5.76852801]
[1745484377858,6.673,1734.2,1733.6,0.5768528]
[1745484378046,3.69919937,1734.5,1733.7,0.6933]
[1745484378047,6.673,1734.5,1733.7,0.6933]
[1745484378248,0.7925,1734.7,1733.8,5.76744234]
[1745484378562,0.7925,1734.7,1734.0,0.6933]
[1745484378771,6.673,1734.8,1734.0,6.46018899]
[1745484378975,6.673,1734.8,1734.1,3.6460189]
[1745484379142,0.8288,1735.0,1734.1,3.6460189]
[1745484379353,0.8288,1735.0,1734.1,0.6460189]
[1745484379862,0.8288,1735.0,1734.0,0.6933]
[1745484380167,0.8288,1735.0,1734.1,3.0]
[1745484380950,0.8288,1735.0,1734.0,0.6933]
[1745484381954,0.8288,1735.0,1734.0,3.6933]
[1745484382434,0.8288,1735.0,1734.0,0.6933]
[1745484382641,0.55,1734.9,1734.0,1.06263]
[1745484382841,3.69919937,1734.8,1734.0,1.06263]
[1745484383171,0.8333,1734.6,1733.6,1.2701528]
[1745484383372,7.5053,1734.6,1733.6,4.2701528]
[1745484383872,3.55,1734.5,1733.6,1.2701528]
[1745484384171,7.24919937,1734.5,1733.6,1.2701528]
[1745484384364,7.24919937,1734.5,1733.6,0.6933]
[1745484386780,0.55,1734.3,1733.6,0.6933]
[1745484388698,3.55,1734.1,1733.3,1.27026503]
[1745484388869,3.55,1734.1,1733.0,0.6933]
[1745484388870,0.55,1733.8,1733.0,0.6933]
[1745484389075,0.7945,1733.7,1733.0,0.6933]
[1745484390383,0.7715,1734.0,1733.2,5.7695274]
[1745484390880,0.7715,1734.0,1733.4,0.6933]
[1745484391087,0.7715,1734.0,1733.2,0.6933]
[1745484391651,0.7715,1734.0,1733.3,3.0]
[1745484391851,0.7715,1734.0,1733.4,0.3]
[1745484393385,0.7715,1734.0,1733.4,6.06890334]
[1745484393551,0.7715,1734.0,1733.4,0.3]
[1745484393750,0.7715,1734.0,1733.4,6.06900755]
[1745484394199,0.7836,1734.2,1733.5,8.76863475]
[1745484394350,0.7836,1734.2,1733.6,0.87686348]
[1745484394693,0.7836,1734.2,1733.5,3.0]
[1745484395063,0.7836,1734.2,1733.4,0.3]
[1745484395296,0.8281,1734.0,1733.2,7.3663]
[1745484395656,0.8281,1734.0,1733.2,13.13573765]
[1745484396065,0.8281,1734.0,1733.2,18.9051753]
[1745484396382,0.8281,1734.0,1733.4,5.76887462]
[1745484396589,0.8281,1734.0,1733.3,3.0]
[1745484396893,0.8281,1734.0,1733.4,0.3]
[1745484398301,0.8281,1734.0,1733.4,6.06897344]
[1745484398565,0.7919,1734.2,1733.7,3.0]
[1745484398763,0.7919,1734.2,1733.5,0.6933]
[1745484399666,0.7919,1734.2,1733.5,3.6933]
[1745484399866,0.7919,1734.2,1733.6,0.36933]
[1745484400067,4.24919937,1734.1,1733.4,0.3]
[1745484400335,4.3311,1733.7,1732.7,0.6933]
[1745484400611,0.7811,1733.4,1732.5,0.6933]
[1745484400979,0.7811,1733.4,1732.5,3.6933]
[1745484401606,0.7811,1733.4,1732.5,0.6933]
[1745484401904,0.7811,1733.4,1732.4,6.673]
[1745484402461,0.7811,1733.4,1732.4,12.44517579]
[1745484402666,0.7811,1733.4,1732.4,6.673]
[1745484403062,0.7811,1733.4,1732.4,12.44521759]
[1745484403288,0.7811,1733.4,1732.4,6.673]
[1745484403479,0.7811,1733.4,1732.5,0.6673]
[1745484404502,0.7811,1733.4,1732.5,3.6673]
[1745484404710,0.7811,1733.4,1732.5,9.43919311]
[1745484405000,0.7811,1733.4,1732.5,3.6673]
[1745484405211,0.7811,1733.4,1732.7,5.77120465]
[1745484405412,0.7811,1733.4,1732.8,0.57712046]
[1745484405608,0.7811,1733.4,1732.8,3.0]
[1745484405905,0.7811,1733.4,1732.7,0.6933]
[1745484406102,0.7811,1733.4,1732.8,3.0]
[1745484406712,0.7811,1733.4,1732.6,3.0]
[1745484406894,0.7811,1733.4,1732.5,4.3606]
[1745484407082,0.8095,1733.2,1732.5,0.6673]
[1745484410305,0.8005,1733.4,1732.8,3.0]
[1745484410475,0.8005,1733.4,1732.9,0.3]
[1745484410675,0.8005,1733.4,1732.6,0.6933]
[1745484411277,0.8005,1733.4,1732.5,9.43929333]
[1745484411583,0.8005,1733.4,1732.5,3.6673]
[1745484412099,0.8005,1733.4,1732.6,5.77138723]
[1745484412697,0.8005,1733.4,1732.7,8.77114613]
[1745484412914,0.8005,1733.4,1732.9,5.77055077]
[1745484413086,0.8005,1733.4,1733.0,5.77009732]
[1745484413488,0.8005,1733.4,1733.0,3.0]
[1745484413696,0.8005,1733.4,1733.0,8.77026158]
[1745484414103,0.44231212,1734.1,1733.0,8.77026158]
[1745484414104,0.8198,1733.7,1733.0,3.0]
[1745484414299,0.8198,1733.7,1733.3,3.0]
[1745484414685,0.8198,1733.7,1733.1,11.8396155]
[1745484414914,0.8198,1733.7,1733.1,6.06973488]
[1745484415245,0.8198,1733.7,1733.3,3.0]
[1745484415582,0.8198,1733.7,1733.1,0.3]
[1745484415789,0.8198,1733.7,1733.0,3.0]
[1745484417506,0.8198,1733.7,1732.9,6.534]
[1745484417679,0.7919,1733.6,1732.9,6.534]
[1745484417881,0.7919,1733.6,1732.8,0.87711461]
[1745484417882,0.7659,1733.5,1732.8,0.87711461]
[1745484418094,3.79926002,1733.5,1732.6,5.77135982]
[1745484418279,9.534,1733.6,1732.5,7.2013]
[1745484418280,4.56516002,1733.3,1732.5,7.2013]
[1745484418501,0.7659,1733.1,1732.5,0.6673]
[1745484418701,0.7659,1733.1,1732.2,5.77278675]
[1745484418702,7.3611,1733.0,1732.2,5.77278675]
[1745484418902,7.3611,1733.0,1732.1,5.77317767]
[1745484418903,7.3611,1733.0,1732.1,5.77319599]
[1745484419136,7.3611,1733.0,1732.0,0.6933]
[1745484419137,7.3611,1733.0,1732.2,5.77289643]
[1745484419489,0.8061,1732.8,1732.1,3.0]
[1745484419828,0.8061,1732.8,1732.2,0.3]
[1745484420213,0.8061,1732.8,1731.9,6.534]
[1745484420411,0.8061,1732.8,1732.0,3.0]
[1745484420721,0.8061,1732.8,1731.9,6.534]
[1745484421028,3.79926002,1732.5,1731.5,13.50345062]
[1745484421228,0.8016,1732.4,1731.6,3.0]
[1745484421415,0.8016,1732.4,1731.7,0.3]
[1745484421818,0.8016,1732.4,1731.8,5.77427916]
[1745484422123,0.8174,1732.9,1732.1,3.0]
[1745484422292,0.8174,1732.9,1732.2,5.7728584]
[1745484422489,0.8174,1732.9,1732.3,3.0]
[1745484422764,0.8174,1732.9,1732.5,5.77186826]
[1745484423113,0.8174,1732.9,1732.4,9.07231009]
[1745484423331,0.8174,1732.9,1732.4,0.3]
[1745484423624,0.8174,1732.9,1732.1,8.77313387]
[1745484423831,0.8174,1732.9,1732.1,3.0]
[1745484423993,0.8174,1732.9,1732.2,5.77298199]
[1745484424188,0.8174,1732.9,1732.3,5.77247324]
[1745484424403,0.8174,1732.9,1732.4,0.57724732]
[1745484424632,0.8174,1732.9,1732.4,6.34953444]
[1745484424825,0.8174,1732.9,1732.4,0.57724732]
[1745484425130,0.8174,1732.9,1732.2,5.77281048]
[1745484425296,0.8174,1732.9,1732.2,5.77278057]
[1745484425498,0.8174,1732.9,1732.3,5.77267158]
[1745484425692,0.8174,1732.9,1732.1,8.77316325]
[1745484425993,0.8174,1732.9,1732.1,3.0]
[1745484426302,0.8174,1732.9,1732.2,5.77273423]
[1745484426849,0.8174,1732.9,1732.1,4.53094597]
[1745484426850,0.8174,1732.9,1732.1,10.30401491]
[1745484427212,0.55,1732.8,1731.7,6.76784967]
[1745484427412,4.50304152,1732.7,1731.7,6.07460251]
[1745484427758,0.7983,1732.3,1731.7,0.3]
[1745484427950,0.55,1732.2,1731.5,0.5]
[1745484428112,6.536,1732.1,1731.5,0.5]
[1745484428316,0.81,1732.0,1731.5,0.5]
[1745484429539,0.81,1732.0,1731.7,3.0]
[1745484430238,0.81,1732.0,1731.5,8.77512649]
[1745484430440,0.81,1732.0,1731.7,3.0]
[1745484430753,0.81,1732.0,1731.7,8.77453269]
[1745484430954,0.81,1732.0,1731.6,0.87751265]
[1745484431152,0.81,1732.0,1731.7,8.77448338]
[1745484431551,0.7737,1732.3,1731.7,8.77448338]
[1745484431726,0.7737,1732.3,1731.8,5.7742728]
[1745484432049,0.7737,1732.3,1731.7,3.0]
[1745484432828,0.7737,1732.3,1731.7,8.77454203]
[1745484433029,0.7737,1732.3,1731.8,0.8774542]
[1745484433251,0.7737,1732.3,1731.7,3.0]
[1745484433450,0.7737,1732.3,1731.5,3.0]
[1745484433754,0.7737,1732.3,1731.7,5.77453021]
[1745484434052,0.7737,1732.3,1731.6,11.54958705]
[1745484434257,0.7737,1732.3,1731.6,5.77477973]
[1745484434455,0.7737,1732.3,1731.7,0.57747797]
[1745484434662,0.7737,1732.3,1731.5,5.77516539]
[1745484434832,0.7737,1732.3,1731.4,8.77551098]
[1745484435062,0.8263,1732.1,1731.2,6.46942243]
[1745484435367,0.8263,1732.1,1731.3,5.77569123]
[1745484435665,0.8263,1732.1,1731.4,5.77557125]
[1745484435842,3.0,1732.0,1731.1,6.536]
[1745484436022,0.7679,1731.8,1731.1,6.536]
[1745484436729,0.7679,1731.8,1730.6,0.29215744]
[1745484436730,0.7679,1731.3,1730.6,0.29215744]
[1745484436940,0.7679,1731.3,1730.5,6.27848599]
[1745484437119,0.7679,1731.3,1730.5,0.5]
[1745484437325,0.8241,1731.2,1730.5,0.5]
[1745484437738,0.8241,1731.2,1730.9,5.77729621]
[1745484437935,6.535,1731.6,1731.1,5.77667379]
[1745484438157,0.7862,1731.5,1731.2,5.7762316]
[1745484438365,0.7862,1731.5,1731.3,0.57762316]
[1745484438751,0.7862,1731.5,1731.1,3.0]
[1745484438937,0.7862,1731.5,1731.0,3.0]
[1745484439341,0.7862,1731.5,1730.7,1.13710645]
[1745484439661,0.7862,1731.5,1730.9,3.0]
[1745484439957,0.7862,1731.5,1731.0,5.77699511]
[1745484440158,0.7862,1731.5,1731.1,6.35418391]
[1745484440464,0.7862,1731.5,1731.3,5.7759759]
[1745484440660,0.7862,1731.5,1731.2,5.77602202]
[1745484440661,0.7862,1731.5,1731.2,3.0]
[1745484440863,0.7856,1731.4,1730.5,6.27848118]
[1745484441083,0.8137,1731.3,1730.5,6.27856499]
[1745484441250,0.8137,1731.3,1730.6,0.6278565]
[1745484441448,0.8137,1731.3,1730.8,5.77739797]
[1745484441765,0.8137,1731.3,1730.9,5.77719072]
[1745484442067,0.8137,1731.3,1730.9,5.77713155]
[1745484442228,0.8137,1731.3,1730.9,5.7773214]
[1745484442564,0.8137,1731.3,1730.6,15.24961729]
[1745484442777,0.8137,1731.3,1730.7,1.52496173]
[1745484443061,0.8137,1731.3,1730.6,8.77819452]
[1745484443269,0.8137,1731.3,1730.6,3.0]
[1745484443464,0.8137,1731.3,1730.8,3.0]
[1745484443668,0.8137,1731.3,1730.7,5.77781964]
[1745484443669,0.8137,1731.3,1730.7,3.0]
[1745484443963,0.8137,1731.3,1730.9,3.0]
[1745484444127,0.8137,1731.3,1731.0,0.3]
[1745484444565,0.8137,1731.3,1730.7,8.77785336]
[1745484444731,0.8137,1731.3,1730.9,3.0]
[1745484444934,0.8137,1731.3,1730.9,8.77714251]
[1745484445311,0.8137,1731.3,1730.9,3.0]
[1745484445470,6.536,1731.3,1730.5,0.5]
[1745484445764,0.8252,1731.2,1730.6,3.0]
[1745484446061,0.8252,1731.2,1730.5,4.12788527]
[1745484446264,0.8252,1731.2,1730.6,5.77833214]
[1745484446433,0.8252,1731.2,1730.6,3.0]
[1745484446633,0.8252,1731.2,1730.7,0.3]
[1745484446952,0.8252,1731.2,1730.5,1.12788527]
[1745484447158,0.8252,1731.2,1730.5,0.5]
[1745484448169,0.8252,1731.2,1730.5,6.27851254]
[1745484448375,0.8252,1731.2,1730.5,3.5]
[1745484449587,0.8252,1731.2,1730.5,0.5]
[1745484449996,0.8298,1731.0,1730.5,0.5]
[1745484450748,0.7644,1730.8,1730.5,0.5]
[1745484451292,7.3024,1730.8,1730.5,0.5]
[1745484452189,0.7644,1730.8,1730.5,6.27860983]
[1745484452391,0.7644,1730.8,1730.6,0.62786098]
[1745484452616,0.7644,1730.8,1730.6,9.40607326]
[1745484452754,0.7622,1731.1,1730.6,9.40607326]
[1745484453158,0.7622,1731.1,1730.6,3.62786098]
[1745484453696,0.7622,1731.1,1730.6,9.40617333]
[1745484453897,0.7622,1731.1,1730.7,0.94061733]
[1745484454194,0.7622,1731.1,1730.6,0.62786098]
[1745484454397,0.7622,1731.1,1730.5,3.5]
[1745484456010,0.7622,1731.1,1730.5,0.5]
[1745484456363,0.8169,1731.0,1730.5,0.5]
[1745484456661,0.8169,1730.8,1730.5,0.5]
[1745484457406,0.55,1730.7,1730.5,0.5]
[1745484457710,0.8169,1730.8,1730.5,0.5]
[1745484457711,0.7935,1730.6,1730.5,0.5]
[1745484458402,200.0,1731.0,1730.5,0.5]
[1745484458720,0.7935,1730.9,1730.5,0.5]
[1745484459215,0.7777,1730.8,1730.5,0.5]
[1745484464927,3.80792933,1730.8,1730.5,0.5]
[1745484465234,0.55,1730.6,1730.5,0.5]
[1745484465523,0.8259,1730.6,1730.5,0.5]
[1745484466288,1.3759,1730.6,1730.5,0.5]
[1745484466730,5.18382933,1730.6,1730.5,0.5]
[1745484467291,1.3177,1730.5,1729.7,0.4094744]
[1745484467724,1.3177,1730.5,1729.7,3.4094744]
[1745484468091,0.7677,1730.5,1729.9,3.0]
[1745484468394,0.7677,1730.5,1729.7,9.19073543]
[1745484469226,0.7677,1730.5,1729.7,0.4094744]
[1745484469414,0.7507,1730.3,1729.7,0.4094744]
[1745484469789,0.7866,1730.1,1729.7,0.4094744]
[1745484473027,0.7994,1730.6,1729.8,5.78088946]
[1745484473197,7.3334,1730.6,1729.8,3.0]
[1745484473399,7.3334,1730.6,1729.7,4.1701744]
[1745484473611,0.7672,1730.4,1729.7,1.40463741]
[1745484473999,0.7672,1730.4,1729.7,0.4094744]
[1745484475059,3.80792933,1730.0,1729.7,0.4094744]
[1745484475193,0.7957,1730.1,1729.7,0.4094744]
[1745484480905,7.3441,1730.6,1729.7,6.1907177]
[1745484481111,6.535,1730.6,1729.8,0.61907177]
[1745484481305,0.8091,1730.5,1729.7,0.4094744]
[1745484481711,0.8091,1730.5,1729.8,5.78094935]
[1745484482042,6.05,1730.9,1730.2,3.0]
[1745484482246,0.7846,1730.8,1730.1,8.78000477]
[1745484482413,0.7846,1730.8,1730.2,0.87800048]
[1745484483457,0.7846,1730.8,1730.0,3.0]
[1745484483639,0.7846,1730.8,1730.0,8.78023653]
[1745484484044,0.7846,1730.8,1730.0,3.0]
[1745484484353,0.7846,1730.8,1729.9,10.3109]
[1745484484678,3.80792933,1730.4,1729.7,0.4094744]
[1745484484850,0.7852,1730.2,1729.7,0.4094744]
[1745484487740,0.7852,1730.2,1729.7,4.1912744]
[1745484487979,0.7852,1730.2,1729.7,1.1912744]
[1745484488167,0.7852,1730.2,1729.7,0.4094744]
[1745484489584,0.7852,1730.2,1729.7,4.1924744]
[1745484489874,0.7852,1730.2,1729.8,0.41924744]
[1745484490250,6.63101952,1731.5,1729.9,8.78067826]
[1745484490451,0.7624,1730.7,1730.0,8.78017635]
[1745484490770,0.7624,1730.7,1730.1,0.8104]
[1745484491251,0.7624,1730.7,1730.2,3.0]
[1745484491780,206.535,1731.0,1729.7,0.4094744]
[1745484491781,0.7792,1730.4,1729.7,0.4094744]
[1745484492287,0.7792,1730.4,1729.7,9.19063887]
[1745484492438,0.7792,1730.4,1729.7,9.19060334]
[1745484492640,0.7792,1730.4,1729.9,3.0]
[1745484493281,6.534,1730.5,1730.0,0.796]
[1745484493446,6.534,1730.5,1730.0,1.75366724]
[1745484493648,6.534,1730.5,1730.0,0.796]
[1745484493848,6.534,1730.5,1729.9,3.0]
[1745484494472,0.7746,1730.6,1729.9,3.0]
[1745484494993,0.7746,1730.6,1730.0,3.0]
[1745484495301,0.7746,1730.6,1729.9,3.0]
[1745484495495,0.7746,1730.6,1730.0,3.3]
[1745484495708,0.7746,1730.6,1730.0,0.3]
[1745484496266,0.7746,1730.6,1729.9,3.0]
[1745484496467,0.7746,1730.6,1730.1,3.0]
[1745484496796,0.7691,1730.8,1730.2,0.7846]
[1745484498196,0.7691,1730.8,1730.1,9.525]
[1745484500275,0.811,1730.7,1730.1,6.525]
[1745484500668,0.811,1730.7,1730.2,3.8088]
[1745484500865,0.811,1730.7,1730.2,9.58827148]
[1745484501995,0.811,1730.7,1730.2,15.36770152]
[1745484502196,0.811,1730.7,1730.3,5.77933834]
[1745484502400,0.811,1730.7,1730.2,9.58823004]
[1745484502601,0.811,1730.7,1730.3,0.958823]
[1745484504016,0.811,1730.7,1730.2,9.58828591]
[1745484504217,0.811,1730.7,1730.3,5.77927374]
[1745484504411,0.811,1730.7,1730.2,9.58828591]
[1745484504614,6.05,1730.2,1728.8,8.4909287]
[1745484504815,3.7883,1729.4,1728.8,8.4909287]
[1745484505000,0.55,1729.1,1728.8,8.4909287]
[1745484505197,9.076,1729.7,1728.8,8.4909287]
[1745484505198,3.80792933,1729.9,1728.9,2.38733333]
[1745484505439,3.0,1729.8,1728.8,8.4909287]
[1745484505602,3.80792933,1729.9,1728.8,8.4909287]
[1745484505603,0.55,1729.6,1728.8,9.34002157]
[1745484505920,3.80792933,1729.5,1728.8,8.4909287]
[1745484506106,0.55,1729.2,1728.8,8.4909287]
[1745484506581,3.80792933,1729.1,1728.8,8.4909287]
[1745484506782,10.33392933,1729.1,1728.8,8.4909287]
[1745484506991,0.55,1729.0,1728.8,8.4909287]
[1745484507311,3.80792933,1728.9,1728.8,8.4909287]
[1745484507819,0.55,1729.0,1728.8,8.4909287]
[1745484508420,1.3548,1728.9,1728.8,8.4909287]
[1745484508781,0.8048,1728.9,1728.8,8.4909287]
[1745484509486,1.3548,1728.9,1728.8,8.4909287]
[1745484509728,1.3812,1728.9,1728.8,8.4909287]
[1745484510311,1.3812,1728.9,1728.0,3.0]
[1745484510884,0.55,1728.9,1728.0,3.0]
[1745484511089,0.55,1728.7,1728.0,3.0]
[1745484511514,0.55,1728.5,1727.9,6.9354744]
[1745484511716,0.55,1728.5,1727.9,0.4094744]
[1745484511717,0.55,1728.3,1727.9,0.4094744]
[1745484511926,0.7727,1728.2,1727.9,0.4094744]
[1745484513504,0.7584,1728.5,1727.9,0.4094744]
[1745484513793,0.7584,1728.5,1727.9,4.20718477]
[1745484514012,0.7584,1728.5,1727.9,9.99455568]
[1745484514401,0.7584,1728.5,1727.9,4.20718477]
[1745484514730,0.55,1728.2,1726.3,9.40972792]
[1745484515031,0.55,1728.2,1726.9,5.79054313]
[1745484515032,0.55,1727.9,1726.9,5.79054313]
[1745484515207,0.55,1727.9,1726.9,3.0]